bitfinex/quotes_SOLUSD_20251024
["timestamp","ask_amount","ask_price","bid_price","bid_amount"]
[1761320991677,0.67,189.63,189.59,3.25779997]
[1761320992616,3.92779997,189.63,189.58,3.25779997]
[1761320992910,0.67,189.63,189.59,3.25779997]
[1761320993318,0.67,189.63,189.6,3.25779997]
[1761320993485,37.73,189.64,189.6,3.25779997]
[1761320993803,0.67,189.63,189.6,3.25779997]
[1761320994272,37.06,189.64,189.61,3.25779997]
[1761320994474,0.67,189.63,189.61,3.25779997]
[1761320994700,37.06,189.62,189.61,3.25779997]
[1761320995078,37.06,189.62,189.61,9.2117834]
[1761320995704,37.06,189.63,189.61,22.39674199]
[1761320995893,37.06,189.63,189.62,3.25779997]
[1761320996499,37.06,189.63,189.62,3.93779997]
[1761320997103,37.06,189.63,189.62,9.21150527]
[1761320998105,37.06,189.63,189.62,5.9537053]
[1761320998304,37.06,189.63,189.62,9.21150527]
[1761321000312,37.06,189.63,189.62,5.2737053]
[1761321000484,37.78,189.63,189.6,3.25779997]
[1761321000691,37.06,189.63,189.59,22.37868925]
[1761321000888,37.06,189.63,189.6,3.25779997]
[1761321001315,37.78,189.63,189.59,22.37868925]
[1761321001609,0.72,189.62,189.59,18.46088928]
[1761321001908,0.72,189.62,189.59,5.27453979]
[1761321002423,37.06,189.63,189.59,9.19233976]
[1761321002616,37.78,189.63,189.59,8.53233976]
[1761321002814,0.72,189.62,189.59,8.53233976]
[1761321003323,37.04,189.61,189.59,8.53233976]
[1761321003814,37.76,189.61,189.59,8.53233976]
[1761321004016,37.04,189.61,189.59,8.53233976]
[1761321004400,3.25779997,189.64,189.61,5.27398343]
[1761321004401,0.72,189.64,189.61,5.27398343]
[1761321004599,37.76,189.63,189.61,5.27398343]
[1761321005187,0.72,189.62,189.61,5.27398343]
[1761321005720,0.72,189.62,189.59,3.25779997]
[1761321006030,14.13427518,189.61,189.56,5.27537455]
[1761321006205,3.25779997,189.6,189.56,5.27537455]
[1761321006518,37.04,189.59,189.54,5.2759312]
[1761321006812,37.76,189.59,189.55,26.13779997]
[1761321007120,37.76,189.59,189.56,3.25779997]
[1761321007302,10.87647521,189.63,189.58,3.25779997]
[1761321007496,37.04,189.62,189.59,3.25779997]
[1761321007818,11.07647521,189.65,189.61,3.25779997]
[1761321008003,37.04,189.64,189.61,3.25779997]
[1761321008206,37.76,189.64,189.61,3.25779997]
[1761321008506,0.72,189.63,189.61,3.25779997]
[1761321008809,0.72,189.63,189.61,8.53153609]
[1761321009894,37.04,189.62,189.6,8.53206157]
[1761321010512,0.72,189.61,189.6,5.2742616]
[1761321010716,0.72,189.61,189.59,5.27449328]
[1761321012110,0.72,189.61,189.58,5.27481801]
[1761321012423,3.97779997,189.61,189.58,5.27481801]
[1761321012917,0.72,189.6,189.58,5.27481801]
[1761321013120,37.04,189.59,189.58,5.27481801]
[1761321014013,41.01779997,189.59,189.51,0.66]
[1761321014207,3.97779997,189.58,189.53,8.53400954]
[1761321014519,3.97779997,189.58,189.53,5.27620957]
[1761321014824,0.72,189.57,189.53,8.53400954]
[1761321015000,37.04,189.56,189.53,8.53400954]
[1761321015402,37.04,189.56,189.53,21.72453346]
[1761321016620,37.76,189.56,189.53,5.27620957]
[1761321016824,0.72,189.55,189.53,5.27620957]
[1761321017028,37.04,189.56,189.53,5.27620957]
[1761321017212,37.04,189.56,189.53,8.53400954]
[1761321017416,37.04,189.55,189.53,9.19400954]
[1761321017612,3.97779997,189.58,189.53,5.93620957]
[1761321017814,3.97779997,189.58,189.53,9.19400954]
[1761321017815,37.04,189.57,189.53,9.19400954]
[1761321018015,37.04,189.56,189.53,9.19400954]
[1761321018617,37.04,189.56,189.53,5.93620957]
[1761321018827,37.04,189.56,189.55,5.27565286]
[1761321019613,37.73,189.56,189.55,5.27565286]
[1761321020415,37.73,189.56,189.53,5.27620957]
[1761321020614,37.04,189.56,189.53,5.27620957]
[1761321021036,37.73,189.56,189.53,5.27620957]
[1761321021718,34.01833479,189.56,189.53,5.27620957]
[1761321022112,33.32833479,189.56,189.53,5.27620957]
[1761321022307,33.32833479,189.56,189.53,3.94779997]
[1761321023032,33.32833479,189.56,189.54,3.94779997]
[1761321023332,10.87647521,189.59,189.55,3.25779997]
[1761321023532,37.04,189.58,189.56,3.25779997]
[1761321023922,112.52130376,189.63,189.57,3.94779997]
[1761321024236,10.87647521,189.61,189.57,3.94779997]
[1761321024616,10.87647521,189.61,189.58,5.27481801]
[1761321024813,10.87647521,189.61,189.58,5.96481801]
[1761321025114,10.87647521,189.61,189.58,9.22261798]
[1761321025309,37.04,189.62,189.58,9.22261798]
[1761321025810,0.2,189.67,189.61,3.25779997]
[1761321026010,0.2,189.67,189.64,3.25779997]
[1761321026214,37.24,189.65,189.64,3.94779997]
[1761321026419,37.24,189.65,189.64,3.25779997]
[1761321026629,37.24,189.65,189.63,5.27337402]
[1761321026820,37.24,189.65,189.63,5.96337402]
[1761321027029,37.24,189.65,189.63,9.22117399]
[1761321027423,37.24,189.65,189.64,0.69]
[1761321027626,37.24,189.65,189.63,5.27337402]
[1761321027831,37.24,189.65,189.63,9.22117399]
[1761321028036,37.24,189.65,189.64,3.25779997]
[1761321028236,37.24,189.65,189.64,3.94779997]
[1761321028616,37.24,189.65,189.64,8.53094909]
[1761321029323,37.24,189.65,189.64,5.27314912]
[1761321030840,37.24,189.65,189.64,3.25779997]
[1761321031044,37.24,189.65,189.64,3.94779997]
[1761321031742,0.2,189.65,189.64,3.94779997]
[1761321031944,0.2,189.65,189.64,0.69]
[1761321032143,0.2,189.65,189.64,3.94779997]
[1761321032940,0.2,189.72,189.66,22.88]
[1761321033150,0.2,189.72,189.71,3.25779997]
[1761321033640,0.2,189.72,189.71,19.7776815]
[1761321034348,0.2,189.72,189.71,23.03548147]
[1761321034733,0.2,189.72,189.71,16.51988153]
[1761321035030,0.2,189.72,189.71,3.94779997]
[1761321035222,0.2,189.72,189.71,9.21900338]
[1761321035423,0.2,189.72,189.71,12.47680335]
[1761321036123,0.2,189.76,189.71,24.96481188]
[1761321036324,0.2,189.77,189.71,24.96481188]
[1761321036325,0.2,189.77,189.75,22.88]
[1761321036840,0.89,189.77,189.76,5.2698145]
[1761321037046,0.2,189.77,189.76,3.25779997]
[1761321038062,0.2,189.77,189.76,3.94779997]
[1761321038242,0.2,189.77,189.75,28.1500827]
[1761321038557,0.2,189.77,189.76,3.94779997]
[1761321038846,0.2,189.8,189.79,8.52678147]
[1761321039227,0.2,189.8,189.79,9.21678147]
[1761321040036,0.2,189.8,189.79,7.37874177]
[1761321040564,0.2,189.8,189.79,8.52678147]
[1761321041648,0.89,189.8,189.78,8.5270207]
[1761321042135,0.2,189.8,189.79,3.25779997]
[1761321042752,0.2,189.8,189.79,2.07941494]
[1761321043140,0.2,189.8,189.79,7.34839644]
[1761321043341,0.2,189.8,189.79,8.03839644]
[1761321043841,0.2,189.8,189.79,7.34839644]
[1761321044447,0.2,189.8,189.79,8.03839644]
[1761321046639,0.2,189.8,189.79,10.14815671]
[1761321048538,0.2,189.8,189.79,8.06874177]
[1761321048761,0.2,189.8,189.79,10.14815671]
[1761321058242,0.2,189.8,189.79,33.02815671]
[1761321058674,0.2,189.8,189.79,18.46581647]
[1761321058965,0.2,189.8,189.79,30.94874177]
[1761321059168,0.2,189.8,189.79,10.14815671]
[1761321060095,0.2,189.8,189.79,32.33815671]
[1761321060255,0.2,189.8,189.79,32.99815671]
[1761321060452,0.2,189.8,189.79,32.33815671]
[1761321060859,0.2,189.8,189.79,30.22839644]
[1761321062077,0.86,189.8,189.79,30.22839644]
[1761321062773,0.86,189.8,189.77,2.07941494]
[1761321062978,0.66,189.79,189.76,5.26978369]
[1761321063177,0.2,189.8,189.78,2.07941494]
[1761321063475,0.2,189.8,189.79,2.07941494]
[1761321063772,0.2,189.8,189.79,24.95941494]
[1761321064677,0.2,189.8,189.79,30.88839644]
[1761321065067,0.2,189.8,189.79,30.22839644]
[1761321066154,0.86,189.8,189.79,28.1489815]
[1761321066355,0.2,189.8,189.79,30.22839644]
[1761321066979,0.86,189.8,189.79,30.22839644]
[1761321067182,0.86,189.8,189.79,28.1489815]
[1761321067368,0.86,189.8,189.79,30.22839644]
[1761321067879,0.2,189.8,189.79,30.22839644]
[1761321068266,0.86,189.8,189.79,7.34839644]
[1761321068678,0.2,189.8,189.79,7.34839644]
[1761321070482,0.86,189.8,189.79,7.34839644]
[1761321071386,0.86,189.8,189.79,5.2689815]
[1761321072266,0.86,189.8,189.79,7.34839644]
[1761321072860,0.86,189.8,189.74,13.17583855]
[1761321073183,0.66,189.79,189.76,2.07941494]
[1761321073477,0.66,189.79,189.75,7.34950716]
[1761321074069,0.66,189.79,189.77,2.07941494]
[1761321074270,0.66,189.79,189.75,5.27009222]
[1761321074472,0.66,189.79,189.77,2.07941494]
[1761321075185,0.66,189.79,189.78,5.26925914]
[1761321075668,0.2,189.8,189.78,7.34867408]
[1761321075862,0.2,189.8,189.79,2.07941494]
[1761321076085,0.86,189.8,189.79,2.07941494]
[1761321076886,0.86,189.8,189.77,5.2694594]
[1761321077068,0.66,189.79,189.77,5.2694594]
[1761321077383,36.98,189.78,189.75,13.17512593]
[1761321077586,0.66,189.77,189.74,7.34978491]
[1761321078083,0.66,189.77,189.75,2.07941494]
[1761321078964,0.66,189.77,189.76,2.07941494]
[1761321079164,0.66,189.77,189.76,7.34922944]
[1761321079380,0.66,189.77,189.76,5.2698145]
[1761321079580,0.66,189.77,189.76,7.34922944]
[1761321080400,36.98,189.78,189.76,7.34922944]
[1761321080590,0.72,189.78,189.77,2.07941494]
[1761321080786,37.7,189.78,189.77,2.07941494]
[1761321080978,37.7,189.78,189.76,7.34922944]
[1761321081189,37.7,189.77,189.76,7.34922944]
[1761321081388,36.98,189.77,189.76,7.34922944]
[1761321081585,37.7,189.77,189.74,5.27018218]
[1761321081781,36.98,189.77,189.76,2.07941494]
[1761321082399,37.7,189.77,189.76,2.07941494]
[1761321083079,37.7,189.77,189.74,20.52552206]
[1761321083279,0.72,189.76,189.74,20.52552206]
[1761321083681,0.72,189.76,189.73,5.27060248]
[1761321083893,10.87647521,189.75,189.73,7.35001742]
[1761321084398,0.72,189.74,189.73,7.35001742]
[1761321086404,0.72,189.74,189.72,5.27092557]
[1761321086581,36.98,189.73,189.72,5.27092557]
[1761321086781,37.7,189.73,189.72,5.27092557]
[1761321087302,37.7,189.73,189.72,7.35034051]
[1761321087605,36.98,189.73,189.72,7.35034051]
[1761321087906,0.72,189.77,189.72,20.52765444]
[1761321088199,36.98,189.76,189.75,2.07941494]
[1761321088578,37.7,189.76,189.75,2.07941494]
[1761321088776,37.7,189.76,189.74,2.07941494]
[1761321088972,0.72,189.75,189.74,2.07941494]
[1761321089394,36.98,189.76,189.74,2.07941494]
[1761321089601,36.98,189.76,189.72,18.4482395]
[1761321089602,37.7,189.76,189.75,5.27009222]
[1761321089905,36.98,189.76,189.75,7.34950716]
[1761321090477,37.7,189.76,189.75,5.27009222]
[1761321090877,10.87647521,189.75,189.73,7.3500627]
[1761321091092,11.59647521,189.75,189.73,7.3500627]
[1761321091274,0.72,189.74,189.72,5.27089364]
[1761321091478,36.98,189.73,189.72,5.27089364]
[1761321091699,36.98,189.73,189.7,13.17864557]
[1761321091700,36.98,189.73,189.7,18.45012685]
[1761321091892,0.72,189.72,189.7,18.45012685]
[1761321092797,36.98,189.73,189.7,20.52954179]
[1761321093101,0.72,189.73,189.71,2.07941494]
[1761321093400,36.98,189.72,189.71,2.07941494]
[1761321093778,36.98,189.72,189.71,7.35061835]
[1761321094098,36.98,189.72,189.71,20.52862688]
[1761321095591,11.59647521,189.75,189.71,20.52862688]
[1761321095790,37.7,189.74,189.73,5.27064776]
[1761321096199,11.59647521,189.75,189.73,5.27064776]
[1761321096400,36.98,189.74,189.73,7.3500627]
[1761321096599,37.7,189.74,189.73,5.27064776]
[1761321098001,37.7,189.74,189.71,13.17800853]
[1761321098302,0.72,189.73,189.71,15.25742347]
[1761321098620,37.7,189.74,189.71,15.25742347]
[1761321098918,0.72,189.74,189.72,2.07941494]
[1761321099122,36.98,189.73,189.71,13.17800853]
[1761321099288,36.98,189.73,189.72,2.07941494]
[1761321099615,36.98,189.73,189.7,5.27148128]
[1761321099616,0.72,189.72,189.7,5.27148128]
[1761321099780,0.72,189.72,189.65,13.18162627]
[1761321099988,0.72,189.72,189.65,13.87162627]
[1761321100294,0.72,189.72,189.66,0.69]
[1761321100496,0.72,189.72,189.7,2.07941494]
[1761321100795,0.72,189.72,189.65,18.45449734]
[1761321100796,10.87647521,189.71,189.65,18.45449734]
[1761321101000,36.98,189.71,189.7,2.07941494]
[1761321101203,37.7,189.71,189.7,2.07941494]
[1761321101789,37.7,189.71,189.65,18.45449734]
[1761321101790,10.87647521,189.7,189.65,18.45449734]
[1761321101989,10.87647521,189.7,189.68,2.07941494]
[1761321101990,0.72,189.7,189.68,2.07941494]
[1761321102202,0.72,189.7,189.69,7.35117412]
[1761321102986,10.87647521,189.69,189.65,13.18211659]
[1761321103197,10.87647521,189.69,189.67,2.07941494]
[1761321103198,47.85647521,189.68,189.67,2.07941494]
[1761321103398,48.57647521,189.68,189.67,2.07941494]
[1761321103585,48.57647521,189.68,189.65,18.45498766]
[1761321103586,48.57647521,189.68,189.66,2.07941494]
[1761321103800,0.72,189.67,189.65,20.5344026]
[1761321104007,0.72,189.67,189.65,5.27287107]
[1761321104603,10.87647521,189.66,189.61,13.18491097]
[1761321104803,36.98,189.65,189.62,8.52872578]
[1761321105027,37.7,189.65,189.62,8.52872578]
[1761321105322,36.98,189.65,189.63,3.25502048]
[1761321105494,36.98,189.65,189.64,3.25502048]
[1761321106122,36.98,189.65,189.64,8.5281696]
[1761321106323,36.98,189.65,189.64,5.27314912]
[1761321106515,36.98,189.65,189.64,8.5281696]
[1761321107833,36.98,189.71,189.64,19.14602193]
[1761321108022,36.98,189.71,189.65,0.69]
[1761321108201,37.7,189.71,189.65,0.69]
[1761321108720,37.7,189.71,189.69,3.25502048]
[1761321108924,48.57647521,189.71,189.7,5.27148128]
[1761321109126,47.85647521,189.71,189.7,5.27148128]
[1761321109530,48.53647521,189.71,189.7,5.27148128]
[1761321110725,48.53647521,189.71,189.7,8.52650176]
[1761321112409,11.55647521,189.71,189.7,8.52650176]
[1761321112612,48.53647521,189.71,189.7,8.52650176]
[1761321112815,48.53647521,189.71,189.7,5.27148128]
[1761321113734,48.53647521,189.71,189.68,8.52705759]
[1761321114033,0.68,189.7,189.69,3.25502048]
[1761321114220,37.66,189.7,189.69,3.25502048]
[1761321114620,36.98,189.7,189.69,3.25502048]
[1761321114799,36.98,189.7,189.69,8.52677966]
[1761321115232,10.87647521,189.71,189.69,8.52677966]
[1761321115408,36.98,189.7,189.69,5.27175918]
[1761321115604,36.98,189.7,189.69,8.52677966]
[1761321116326,37.66,189.7,189.69,8.52677966]
[1761321117210,36.98,189.7,189.69,8.52677966]
[1761321120226,0.68,189.72,189.69,21.70617762]
[1761321120439,36.98,189.71,189.69,19.15115714]
[1761321120736,10.87647521,189.74,189.7,3.95502048]
[1761321120946,36.98,189.72,189.7,0.7]
[1761321121109,36.98,189.72,189.69,18.45115714]
[1761321121110,36.98,189.72,189.71,0.7]
[1761321121806,36.98,189.72,189.71,3.95502048]
[1761321122413,36.98,189.73,189.71,22.40423242]
[1761321122611,36.98,189.73,189.72,3.25502048]
[1761321123119,37.66,189.73,189.72,3.25502048]
[1761321123517,36.98,189.73,189.72,3.25502048]
[1761321124030,36.98,189.73,189.72,3.95502048]
[1761321124529,36.98,189.73,189.72,9.22594605]
[1761321124732,36.98,189.74,189.72,22.40325998]
[1761321124940,36.98,189.74,189.73,3.95502048]
[1761321125232,10.87647521,189.77,189.73,3.95502048]
[1761321125432,103.98,189.79,189.76,3.25502048]
[1761321125623,47.85647521,189.78,189.77,3.25502048]
[1761321125936,48.53647521,189.78,189.77,3.25502048]
[1761321126132,47.85647521,189.78,189.77,3.25502048]
[1761321126437,0.2,189.8,189.78,5.26925914]
[1761321126615,36.98,189.79,189.78,5.26925914]
[1761321127029,0.2,189.8,189.78,5.26925914]
[1761321127348,36.98,189.79,189.78,5.26925914]
[1761321127758,36.98,189.79,189.78,5.96925914]
[1761321128035,36.98,189.79,189.78,9.22427962]
[1761321128731,36.98,189.79,189.78,8.52427962]
[1761321128935,37.66,189.79,189.78,8.52427962]
[1761321129140,37.66,189.79,189.78,5.26925914]
[1761321131423,37.66,189.79,189.76,3.25502048]
[1761321131629,37.66,189.79,189.72,3.25502048]
[1761321131630,14.81149569,189.78,189.72,3.25502048]
[1761321131833,3.25502048,189.76,189.71,16.43296383]
[1761321132036,36.96,189.75,189.71,16.43296383]
[1761321132232,37.64,189.75,189.73,5.27064776]
[1761321132430,10.87647521,189.77,189.73,8.52566824]
[1761321132737,37.64,189.76,189.74,3.25502048]
[1761321132936,36.96,189.75,189.74,3.25502048]
[1761321134450,10.87647521,189.78,189.74,9.22539045]
[1761321134638,36.96,189.77,189.75,3.25502048]
[1761321135142,11.07647521,189.8,189.76,3.95502048]
[1761321135348,36.96,189.79,189.78,3.25502048]
[1761321135533,37.64,189.79,189.77,3.25502048]
[1761321135850,11.07647521,189.8,189.78,3.25502048]
[1761321136026,36.96,189.79,189.78,3.25502048]
[1761321136426,37.64,189.79,189.77,3.25502048]
[1761321136929,36.96,189.79,189.77,3.25502048]
[1761321137128,10.87647521,189.78,189.76,5.2698145]
[1761321137329,11.55647521,189.78,189.76,8.52483498]
[1761321137649,10.87647521,189.78,189.76,8.52483498]
[1761321137845,36.96,189.77,189.76,8.52483498]
[1761321139451,37.67,189.77,189.71,23.6]
[1761321139657,0.71,189.76,189.72,3.25502048]
[1761321139948,0.71,189.76,189.73,3.25502048]
[1761321140360,0.71,189.76,189.74,3.25502048]
[1761321140542,0.71,189.76,189.73,3.25502048]
[1761321141054,0.71,189.76,189.74,3.25502048]
[1761321141434,0.71,189.76,189.73,5.27045911]
[1761321141637,0.71,189.76,189.74,3.25502048]
[1761321143656,36.96,189.75,189.74,8.5252074]
[1761321144468,36.96,189.75,189.74,5.27018692]
[1761321145056,36.96,189.75,189.73,8.52560775]
[1761321145238,0.71,189.74,189.71,5.27094381]
[1761321145446,0.71,189.74,189.71,8.52596429]
[1761321146137,0.71,189.74,189.69,8.52652056]
[1761321146138,10.87647521,189.73,189.69,8.52652056]
[1761321146352,37.67,189.72,189.69,8.52652056]
[1761321146973,11.58647521,189.71,189.69,5.27150008]
[1761321147258,36.96,189.73,189.7,3.97502048]
[1761321147444,36.96,189.73,189.72,3.25502048]
[1761321148062,36.96,189.73,189.72,3.97502048]
[1761321148248,36.96,189.73,189.72,0.72]
[1761321149360,36.96,189.73,189.71,8.52601964]
[1761321149547,36.96,189.73,189.68,0.72]
[1761321149749,37.67,189.73,189.69,0.72]
[1761321150058,10.87647521,189.72,189.69,5.27175918]
[1761321150257,10.87647521,189.72,189.69,5.99175918]
[1761321151250,11.58647521,189.72,189.69,5.27175918]
[1761321151450,0.71,189.71,189.69,5.27175918]
[1761321151772,36.96,189.7,189.69,5.27175918]
[1761321152057,36.96,189.7,189.69,8.52677966]
[1761321152572,10.87647521,189.72,189.69,5.27175918]
[1761321152758,36.96,189.71,189.69,8.52677966]
[1761321152963,10.87647521,189.73,189.7,3.97502048]
[1761321153167,36.96,189.72,189.71,3.25502048]
[1761321154164,10.87647521,189.73,189.72,5.27092557]
[1761321154350,47.83647521,189.73,189.72,5.27092557]
[1761321154966,10.87647521,189.73,189.72,5.27092557]
[1761321155264,47.83647521,189.73,189.72,5.27092557]
[1761321156067,36.96,189.73,189.72,5.27092557]
[1761321156258,11.58647521,189.76,189.72,8.52594605]
[1761321156651,10.87647521,189.74,189.73,3.25502048]
[1761321156967,47.83647521,189.74,189.72,8.52594605]
[1761321157342,48.54647521,189.74,189.72,5.27092557]
[1761321157742,47.83647521,189.74,189.72,5.99092557]
[1761321157960,47.83647521,189.74,189.72,5.27092557]
[1761321158544,10.87647521,189.74,189.72,5.27092557]
[1761321158862,36.96,189.73,189.72,5.99092557]
[1761321159463,10.87647521,189.74,189.72,5.99092557]
[1761321159769,36.96,189.73,189.72,5.99092557]
[1761321161059,36.96,189.73,189.72,5.27092557]
[1761321162154,36.96,189.73,189.72,9.24594605]
[1761321162364,36.96,189.73,189.72,5.27092557]
[1761321162569,36.96,189.73,189.7,9.24630267]
[1761321163073,36.96,189.73,189.7,8.52630267]
[1761321163268,36.96,189.73,189.71,3.97502048]
[1761321163862,10.87647521,189.74,189.72,5.27092557]
[1761321164069,36.96,189.73,189.72,5.27092557]
[1761321164462,36.96,189.73,189.72,22.42325998]
[1761321164776,36.96,189.73,189.72,20.52902914]
[1761321166978,36.96,189.73,189.72,18.4482395]
[1761321168981,37.67,189.73,189.72,5.27092557]
[1761321169782,36.96,189.73,189.72,5.27092557]
[1761321170281,37.68,189.73,189.72,5.27092557]
[1761321170786,37.68,189.73,189.71,5.27117943]
[1761321170982,36.96,189.73,189.71,7.35196907]
[1761321172174,11.59647521,189.77,189.72,2.78078964]
[1761321172375,10.87647521,189.75,189.72,2.08078964]
[1761321172872,0.72,189.74,189.71,20.5299776]
[1761321173077,36.94,189.73,189.71,20.5299776]
[1761321173690,36.94,189.73,189.71,21.2299776]
[1761321174691,36.94,189.73,189.71,20.5299776]
[1761321175180,36.94,189.73,189.71,21.2299776]
[1761321175785,36.94,189.73,189.72,2.08078964]
[1761321177094,36.94,189.73,189.72,7.35171521]
[1761321177572,36.94,189.73,189.72,5.27092557]
[1761321178982,37.6,189.73,189.72,5.27092557]
[1761321179592,36.94,189.73,189.72,5.27092557]
[1761321179788,11.53647521,189.75,189.72,5.27092557]
[1761321179991,36.94,189.74,189.72,5.97092557]
[1761321180375,36.94,189.74,189.72,8.05171521]
[1761321181401,36.94,189.74,189.72,7.35171521]
[1761321181993,11.53647521,189.76,189.72,7.35171521]
[1761321182207,36.94,189.75,189.72,8.05171521]
[1761321182592,36.94,189.74,189.72,8.05171521]
[1761321182900,36.94,189.74,189.72,7.35171521]
[1761321183283,103.3,189.78,189.73,2.78078964]
[1761321183599,47.81647521,189.77,189.75,2.08078964]
[1761321184085,48.47647521,189.77,189.75,2.08078964]
[1761321184292,48.47647521,189.77,189.74,2.08078964]
[1761321185187,36.94,189.76,189.74,5.27036997]
[1761321185391,36.94,189.76,189.75,2.08078964]
[1761321186497,36.94,189.76,189.75,7.35088186]
[1761321187086,36.94,189.76,189.75,8.05088186]
[1761321187289,11.07647521,189.8,189.75,8.05088186]
[1761321187498,0.2,189.8,189.79,2.08078964]
[1761321187817,0.2,189.8,189.78,22.88]
[1761321188102,36.94,189.79,189.76,2.08078964]
[1761321188405,36.94,189.79,189.77,5.2695368]
[1761321188585,36.94,189.79,189.77,7.35032644]
[1761321189411,36.94,189.79,189.78,2.08078964]
[1761321189700,36.94,189.79,189.78,2.78078964]
[1761321190210,0.2,189.8,189.78,2.78078964]
[1761321190388,0.2,189.8,189.79,25.66078964]
[1761321190597,0.2,189.8,189.79,30.92977114]
[1761321193696,0.2,189.8,189.79,5.2689815]
[1761321193697,37.12,189.8,189.79,5.2689815]
[1761321194918,37.12,189.8,189.77,5.96941702]
[1761321195118,37.12,189.8,189.77,8.05020666]
[1761321195286,37.12,189.8,189.77,2.78078964]
[1761321195488,37.12,189.8,189.77,0.7]
[1761321195911,37.78,189.8,189.76,2.08078964]
[1761321196395,37.78,189.8,189.76,2.78078964]
[1761321196913,37.78,189.8,189.76,8.05058419]
[1761321197304,37.12,189.8,189.77,2.08078964]
[1761321197498,37.12,189.8,189.77,2.78078964]
[1761321197996,37.12,189.8,189.77,8.05023177]
[1761321200028,37.12,189.8,189.77,2.78078964]
[1761321200523,37.12,189.8,189.77,8.05024541]
[1761321202117,37.12,189.8,189.78,2.79078964]
[1761321202309,37.12,189.8,189.79,2.08078964]
[1761321203518,37.12,189.8,189.79,7.34977114]
[1761321204210,37.12,189.8,189.79,8.05977114]
[1761321204524,37.12,189.8,189.78,2.79078964]
[1761321204929,37.12,189.8,189.79,0.71]
[1761321205115,0.2,189.8,189.79,2.79078964]
[1761321205634,37.12,189.8,189.79,2.79078964]
[1761321206728,37.12,189.8,189.77,15.25446686]
[1761321206932,37.12,189.8,189.77,15.96446686]
[1761321207514,37.12,189.8,189.78,0.71]
[1761321207735,37.12,189.8,189.77,15.25446686]
[1761321207936,37.12,189.8,189.77,15.96446686]
[1761321208131,37.12,189.8,189.78,0.71]
[1761321208335,37.12,189.8,189.78,2.79078964]
[1761321208532,37.12,189.8,189.79,2.08078964]
[1761321208724,37.12,189.8,189.79,2.79078964]
[1761321209032,0.2,189.8,189.79,0.71]
[1761321209211,37.1,189.8,189.79,0.71]
[1761321209608,37.1,189.8,189.78,2.79078964]
[1761321210445,37.1,189.8,189.79,5.2689815]
[1761321211921,37.1,189.8,189.77,13.88367722]
[1761321212129,37.1,189.8,189.78,2.08078964]
[1761321213246,37.1,189.8,189.79,5.2689815]
[1761321214044,37.1,189.8,189.79,5.9789815]
[1761321214240,0.2,189.8,189.79,8.05977114]
[1761321222860,0.2,189.8,189.79,5.2689815]
[1761321224464,0.2,189.8,189.78,5.26925914]
[1761321224668,0.2,189.8,189.78,5.97925914]
[1761321224875,0.2,189.8,189.78,5.26925914]
[1761321225165,0.2,189.8,189.78,9.22866008]
[1761321225572,0.2,189.8,189.78,5.26925914]
[1761321225758,0.2,189.8,189.78,8.51866008]
[1761321226974,0.91,189.8,189.78,5.26925914]
[1761321227173,40.14940094,189.79,189.76,13.17367722]
[1761321227384,3.24940094,189.78,189.72,9.23032651]
[1761321227547,3.24940094,189.78,189.73,0.71]
[1761321227752,3.95940094,189.77,189.72,21.69764044]
[1761321227965,3.95940094,189.77,189.72,22.40764044]
[1761321228281,0.71,189.76,189.72,21.69764044]
[1761321228486,36.88,189.75,189.72,22.40764044]
[1761321228695,36.88,189.75,189.74,5.27036997]
[1761321229251,40.83940094,189.75,189.67,5.27231507]
[1761321229481,3.24940094,189.73,189.68,3.96940094]
[1761321229850,0.69,189.72,189.68,3.96940094]
[1761321230051,36.88,189.71,189.68,3.96940094]